[Event "Titled Tuesday Blitz January 17 Late 2023"]
[White "Reprintsev, Alexander"]
[Black "Chlpik, Martin"]
[WhiteFideId "14100541"]
[BlackFideId "14923351"]
[WhiteElo "2253"]
[BlackElo "2287"]
[Result "1-0"]
[Round "05"]
[TimeControl "180+2"]
[Date "2023.01.17"]
[WhiteClock "0:00:15"]
[BlackClock "0:00:07"]

1. e4 {[%clk 0:03:00]}  c5 {[%clk 0:02:52]} 2. b3 {[%clk 0:03:00]}  Nc6 {[%clk 0:02:49]} 3. Bb2 {[%clk 0:03:00]}  e5 {[%clk 0:02:50]} 4. f4 {[%clk 0:02:59]}  exf4 {[%clk 0:02:47]} 5. Qf3 {[%clk 0:02:59]}  Nf6 {[%clk 0:02:38]} 6. Qxf4 {[%clk 0:02:57]}  Be7 {[%clk 0:02:34]} 7. e5 {[%clk 0:02:48]}  Nd5 {[%clk 0:02:32]} 8. Qe4 {[%clk 0:02:48]}  Nc7 {[%clk 0:02:00]} 9. Nf3 {[%clk 0:02:48]}  O-O {[%clk 0:01:55]} 10. Bd3 {[%clk 0:02:47]}  g6 {[%clk 0:01:54]} 11. h4 {[%clk 0:02:43]}  d5 {[%clk 0:01:54]} 12. exd6 {[%clk 0:02:43]}  Bxd6 {[%clk 0:01:53]} 13. Qa4 {[%clk 0:01:44]}  a6 {[%clk 0:01:48]} 14. h5 {[%clk 0:01:40]}  b5 {[%clk 0:01:35]} 15. Qh4 {[%clk 0:01:37]}  Qxh4+ {[%clk 0:01:14]} 16. Nxh4 {[%clk 0:01:37]}  Nb4 {[%clk 0:01:02]} 17. O-O {[%clk 0:01:22]}  Nxd3 {[%clk 0:00:59]} 18. cxd3 {[%clk 0:01:22]}  Bg3 {[%clk 0:00:51]} 19. Nf3 {[%clk 0:01:21]}  Ne6 {[%clk 0:00:47]} 20. Nc3 {[%clk 0:01:21]}  Bb7 {[%clk 0:00:46]} 21. Ne4 {[%clk 0:01:20]}  Bxe4 {[%clk 0:00:39]} 22. dxe4 {[%clk 0:01:21]}  Nf4 {[%clk 0:00:32]} 23. hxg6 {[%clk 0:01:21]}  fxg6 {[%clk 0:00:29]} 24. d4 {[%clk 0:01:02]}  Ne2+ {[%clk 0:00:22]} 25. Kh1 {[%clk 0:01:02]}  Rf4 {[%clk 0:00:21]} 26. dxc5 {[%clk 0:00:56]}  Rxe4 {[%clk 0:00:20]} 27. Rad1 {[%clk 0:00:52]}  Rf8 {[%clk 0:00:20]} 28. Ng5 {[%clk 0:00:38]}  Rh4+ {[%clk 0:00:19]} 29. Nh3 {[%clk 0:00:38]}  Rxf1+ {[%clk 0:00:11]} 30. Rxf1 {[%clk 0:00:37]}  g5 {[%clk 0:00:11]} 31. Bf6 {[%clk 0:00:33]}  Bc7 {[%clk 0:00:08]} 32. Bxg5 {[%clk 0:00:32]}  Ng3+ {[%clk 0:00:08]} 33. Kg1 {[%clk 0:00:32]}  Rg4 {[%clk 0:00:06]} 34. Re1 {[%clk 0:00:26]}  Nf5 {[%clk 0:00:06]} 35. Re8+ {[%clk 0:00:18]}  Kf7 {[%clk 0:00:05]} 36. Rc8 {[%clk 0:00:18]}  Be5 {[%clk 0:00:05]} 37. c6 {[%clk 0:00:16]}  Bd4+ {[%clk 0:00:06]} 38. Kf1 {[%clk 0:00:16]}  h6 {[%clk 0:00:04]} 39. Bd2 {[%clk 0:00:14]}  Ng3+ {[%clk 0:00:04]} 40. Ke1 {[%clk 0:00:14]}  Re4+ {[%clk 0:00:05]} 41. Kd1 {[%clk 0:00:14]}  Be5 {[%clk 0:00:03]} 42. c7 {[%clk 0:00:14]}  Rd4 {[%clk 0:00:03]} 43. Rf8+ {[%clk 0:00:13]}  Kxf8 {[%clk 0:00:03]} 44. c8=Q+ {[%clk 0:00:13]}  Kf7 {[%clk 0:00:02]} 45. Qb7+ {[%clk 0:00:12]}  Ke6 {[%clk 0:00:02]} 46. Qxa6+ {[%clk 0:00:12]}  Kf5 {[%clk 0:00:01]} 47. Qxh6 {[%clk 0:00:12]}  Ne4 {[%clk 0:00:01]} 48. Qh7+ {[%clk 0:00:09]}  Ke6 {[%clk 0:00:02]} 49. Qg8+ {[%clk 0:00:08]}  Kd6 {[%clk 0:00:02]} 50. Qd8+ {[%clk 0:00:07]}  Kc5 {[%clk 0:00:03]} 51. Qc8+ {[%clk 0:00:06]}  Kd5 {[%clk 0:00:03]} 52. Qc2 {[%clk 0:00:05]}  Nxd2 {[%clk 0:00:03]} 53. Qxd2 {[%clk 0:00:06]}  Rxd2+ {[%clk 0:00:02]} 54. Kxd2 {[%clk 0:00:07]}  Ke6 {[%clk 0:00:02]} 55. Kd3 {[%clk 0:00:07]}  Kd5 {[%clk 0:00:02]} 56. Nf2 {[%clk 0:00:07]}  Bg3 {[%clk 0:00:02]} 57. Ne4 {[%clk 0:00:07]}  Bc7 {[%clk 0:00:03]} 58. Nc3+ {[%clk 0:00:08]}  Kc6 {[%clk 0:00:01]} 59. b4 {[%clk 0:00:07]}  Bb6 {[%clk 0:00:01]} 60. a3 {[%clk 0:00:07]}  Bd8 {[%clk 0:00:02]} 61. g4 {[%clk 0:00:08]}  Bf6 {[%clk 0:00:02]} 62. Ne4 {[%clk 0:00:08]}  Bb2 {[%clk 0:00:02]} 63. g5 {[%clk 0:00:08]}  Bxa3 {[%clk 0:00:02]} 64. Kc3 {[%clk 0:00:08]}  Bc1 {[%clk 0:00:02]} 65. g6 {[%clk 0:00:08]}  Bh6 {[%clk 0:00:03]} 66. Ng3 {[%clk 0:00:07]}  Bg7+ {[%clk 0:00:03]} 67. Kd3 {[%clk 0:00:08]}  Kd5 {[%clk 0:00:03]} 68. Nf5 {[%clk 0:00:08]}  Bf6 {[%clk 0:00:03]} 69. g7 {[%clk 0:00:09]}  Bxg7 {[%clk 0:00:03]} 70. Nxg7 {[%clk 0:00:09]}  Kc6 {[%clk 0:00:03]} 71. Kd4 {[%clk 0:00:09]}  Kd6 {[%clk 0:00:03]} 72. Nf5+ {[%clk 0:00:10]}  Kc6 {[%clk 0:00:04]} 73. Ke5 {[%clk 0:00:10]}  Kb6 {[%clk 0:00:04]} 74. Kd5 {[%clk 0:00:11]}  Ka6 {[%clk 0:00:04]} 75. Kc5 {[%clk 0:00:12]}  Kb7 {[%clk 0:00:04]} 76. Kxb5 {[%clk 0:00:13]}  Ka7 {[%clk 0:00:05]} 77. Kc5 {[%clk 0:00:13]}  Kb7 {[%clk 0:00:06]} 78. b5 {[%clk 0:00:14]}  Kb8 {[%clk 0:00:06]} 79. b6 {[%clk 0:00:14]}  Kc8 {[%clk 0:00:07]} 80. Kc6 {[%clk 0:00:14]}  Kb8 {[%clk 0:00:07]} 81. b7 {[%clk 0:00:14]}  Ka7 {[%clk 0:00:07]} 82. Kc7 {[%clk 0:00:15]} 1-0


[Site "https://www.chess.com"]

[Event "Titled Tuesday Blitz January 17 Late 2023"]
[White "Rodriguez Fontecha, Marcos"]
[Black "Harish, Neeraj"]
[WhiteFideId "2256576"]
[BlackFideId "30958130"]
[WhiteElo "2309"]
[BlackElo "2232"]
[Result "1/2-1/2"]
[Round "05"]
[TimeControl "180+2"]
[Date "2023.01.17"]
[WhiteClock "0:00:09"]
[BlackClock "0:00:08"]

1. Nf3 {[%clk 0:02:58]}  d5 {[%clk 0:02:57]} 2. g3 {[%clk 0:02:56]}  Nf6 {[%clk 0:02:56]} 3. Bg2 {[%clk 0:02:57]}  e6 {[%clk 0:02:57]} 4. O-O {[%clk 0:02:57]}  Be7 {[%clk 0:02:57]} 5. d3 {[%clk 0:02:57]}  O-O {[%clk 0:02:56]} 6. Nbd2 {[%clk 0:02:58]}  c5 {[%clk 0:02:56]} 7. e4 {[%clk 0:02:59]}  Nc6 {[%clk 0:02:53]} 8. Re1 {[%clk 0:02:58]}  Qc7 {[%clk 0:02:53]} 9. Qe2 {[%clk 0:02:57]}  Re8 {[%clk 0:02:41]} 10. e5 {[%clk 0:02:57]}  Nd7 {[%clk 0:02:41]} 11. Nf1 {[%clk 0:02:58]}  b5 {[%clk 0:02:36]} 12. h4 {[%clk 0:02:58]}  a5 {[%clk 0:02:24]} 13. N1h2 {[%clk 0:02:58]}  a4 {[%clk 0:02:21]} 14. h5 {[%clk 0:02:58]}  h6 {[%clk 0:02:17]} 15. Ng4 {[%clk 0:02:58]}  Bf8 {[%clk 0:02:16]} 16. Bf4 {[%clk 0:02:55]}  Bb7 {[%clk 0:02:09]} 17. Qd2 {[%clk 0:02:54]}  b4 {[%clk 0:01:47]} 18. Bxh6 {[%clk 0:02:53]}  gxh6 {[%clk 0:01:45]} 19. Nxh6+ {[%clk 0:02:54]}  Bxh6 {[%clk 0:01:42]} 20. Qxh6 {[%clk 0:02:55]}  Nf8 {[%clk 0:01:24]} 21. Ng5 {[%clk 0:02:33]}  Nxe5 {[%clk 0:01:07]} 22. Bh3 {[%clk 0:02:28]}  f5 {[%clk 0:00:52]} 23. Qf6 {[%clk 0:02:02]}  Nh7 {[%clk 0:00:17]} 24. Nxh7 {[%clk 0:01:51]}  Nf3+ {[%clk 0:00:17]} 25. Kf1 {[%clk 0:01:21]}  Qxh7 {[%clk 0:00:16]} 26. Rxe6 {[%clk 0:01:19]}  Rxe6 {[%clk 0:00:14]} 27. Qxe6+ {[%clk 0:01:19]}  Qf7 {[%clk 0:00:14]} 28. Qxf7+ {[%clk 0:01:06]}  Kxf7 {[%clk 0:00:14]} 29. Bxf5 {[%clk 0:01:06]}  Nd4 {[%clk 0:00:14]} 30. Bg6+ {[%clk 0:01:06]}  Kg7 {[%clk 0:00:14]} 31. c3 {[%clk 0:01:06]}  bxc3 {[%clk 0:00:13]} 32. bxc3 {[%clk 0:01:07]}  Nb5 {[%clk 0:00:13]} 33. Rb1 {[%clk 0:01:07]}  Bc6 {[%clk 0:00:13]} 34. c4 {[%clk 0:01:06]}  dxc4 {[%clk 0:00:14]} 35. dxc4 {[%clk 0:01:06]}  Nc3 {[%clk 0:00:14]} 36. Rb6 {[%clk 0:01:06]}  Rc8 {[%clk 0:00:14]} 37. Ke1 {[%clk 0:01:02]}  Nxa2 {[%clk 0:00:13]} 38. Kd2 {[%clk 0:01:01]}  Nb4 {[%clk 0:00:14]} 39. Bf5 {[%clk 0:00:52]}  a3 {[%clk 0:00:14]} 40. Bb1 {[%clk 0:00:42]}  a2 {[%clk 0:00:13]} 41. Bxa2 {[%clk 0:00:42]}  Nxa2 {[%clk 0:00:14]} 42. Ra6 {[%clk 0:00:37]}  Nb4 {[%clk 0:00:15]} 43. Ra7+ {[%clk 0:00:38]}  Kh6 {[%clk 0:00:15]} 44. g4 {[%clk 0:00:38]}  Rd8+ {[%clk 0:00:15]} 45. Ke2 {[%clk 0:00:34]}  Rd7 {[%clk 0:00:15]} 46. Ra5 {[%clk 0:00:29]}  Nd3 {[%clk 0:00:13]} 47. Ke3 {[%clk 0:00:20]}  Kg5 {[%clk 0:00:13]} 48. Ra6 {[%clk 0:00:17]}  Bb7 {[%clk 0:00:11]} 49. Rb6 {[%clk 0:00:14]}  Kxg4 {[%clk 0:00:11]} 50. h6 {[%clk 0:00:14]}  Kg5 {[%clk 0:00:09]} 51. h7 {[%clk 0:00:14]}  Rxh7 {[%clk 0:00:09]} 52. Kxd3 {[%clk 0:00:14]}  Rd7+ {[%clk 0:00:08]} 53. Ke3 {[%clk 0:00:15]}  Kf5 {[%clk 0:00:09]} 54. Rb5 {[%clk 0:00:14]}  Rc7 {[%clk 0:00:09]} 55. Rb6 {[%clk 0:00:14]}  Ke5 {[%clk 0:00:09]} 56. Rh6 {[%clk 0:00:15]}  Bc6 {[%clk 0:00:09]} 57. Rh5+ {[%clk 0:00:15]}  Kd6 {[%clk 0:00:09]} 58. Rh6+ {[%clk 0:00:16]}  Kd7 {[%clk 0:00:09]} 59. Rh7+ {[%clk 0:00:16]}  Kc8 {[%clk 0:00:09]} 60. Rh5 {[%clk 0:00:17]}  Bd7 {[%clk 0:00:09]} 61. f4 {[%clk 0:00:16]}  Kb7 {[%clk 0:00:09]} 62. Rh6 {[%clk 0:00:16]}  Be8 {[%clk 0:00:09]} 63. Re6 {[%clk 0:00:15]}  Bf7 {[%clk 0:00:09]} 64. Re4 {[%clk 0:00:14]}  Kb6 {[%clk 0:00:10]} 65. f5 {[%clk 0:00:12]}  Ka5 {[%clk 0:00:10]} 66. Kf4 {[%clk 0:00:12]}  Kb4 {[%clk 0:00:11]} 67. f6 {[%clk 0:00:10]}  Bxc4 {[%clk 0:00:11]} 68. Re8 {[%clk 0:00:07]}  Kb5 {[%clk 0:00:10]} 69. Ke5 {[%clk 0:00:08]}  Bf7 {[%clk 0:00:10]} 70. Kd6 {[%clk 0:00:08]}  Rb7 {[%clk 0:00:09]} 71. Re5 {[%clk 0:00:07]}  Kb4 {[%clk 0:00:07]} 72. Rxc5 {[%clk 0:00:06]}  Rb6+ {[%clk 0:00:07]} 73. Rc6 {[%clk 0:00:07]}  Rxc6+ {[%clk 0:00:07]} 74. Kxc6 {[%clk 0:00:08]}  Bg6 {[%clk 0:00:08]} 75. Kd6 {[%clk 0:00:09]}  Bh5 {[%clk 0:00:08]} 76. f7 {[%clk 0:00:09]}  Bxf7 {[%clk 0:00:08]} 1/2-1/2


[Site "https://www.chess.com"]

[Event "Titled Tuesday Blitz January 17 Late 2023"]
[White "Gatterer, Florian"]
[Black "Korchmar, Vasiliy"]
[WhiteFideId "811688"]
[BlackFideId "24131750"]
[WhiteElo "2170"]
[BlackElo "2438"]
[Result "0-1"]
[Round "05"]
[TimeControl "180+2"]
[Date "2023.01.17"]
[WhiteClock "0:00:17"]
[BlackClock "0:00:19"]

1. d4 {[%clk 0:03:00]}  d5 {[%clk 0:02:59]} 2. Nf3 {[%clk 0:03:00]}  Nf6 {[%clk 0:02:57]} 3. g3 {[%clk 0:03:01]}  c5 {[%clk 0:02:54]} 4. Bg2 {[%clk 0:02:55]}  Nbd7 {[%clk 0:02:53]} 5. O-O {[%clk 0:02:53]}  g6 {[%clk 0:02:54]} 6. c4 {[%clk 0:02:49]}  dxc4 {[%clk 0:02:48]} 7. dxc5 {[%clk 0:02:49]}  Bg7 {[%clk 0:02:48]} 8. c6 {[%clk 0:02:41]}  bxc6 {[%clk 0:02:49]} 9. Nd4 {[%clk 0:02:38]}  O-O {[%clk 0:02:44]} 10. Nxc6 {[%clk 0:02:37]}  Qe8 {[%clk 0:02:42]} 11. Nxe7+ {[%clk 0:02:25]}  Qxe7 {[%clk 0:02:43]} 12. Bxa8 {[%clk 0:02:25]}  Nb6 {[%clk 0:02:35]} 13. Bg2 {[%clk 0:02:20]}  Rd8 {[%clk 0:02:33]} 14. Qc2 {[%clk 0:02:03]}  Bf5 {[%clk 0:02:30]} 15. e4 {[%clk 0:02:02]}  Nxe4 {[%clk 0:02:23]} 16. Re1 {[%clk 0:01:43]}  Nxg3 {[%clk 0:02:06]} 17. Rxe7 {[%clk 0:01:22]}  Bxc2 {[%clk 0:02:06]} 18. hxg3 {[%clk 0:01:17]}  Rd1+ {[%clk 0:02:06]} 19. Kh2 {[%clk 0:01:12]}  Rxc1 {[%clk 0:02:06]} 20. Re8+ {[%clk 0:01:04]}  Bf8 {[%clk 0:02:05]} 21. Na3 {[%clk 0:01:02]}  Rxa1 {[%clk 0:02:02]} 22. Nxc2 {[%clk 0:01:02]}  Rxa2 {[%clk 0:02:03]} 23. Ne3 {[%clk 0:00:51]}  Rxb2 {[%clk 0:02:01]} 24. Nd5 {[%clk 0:00:51]}  Nxd5 {[%clk 0:01:57]} 25. Bxd5 {[%clk 0:00:50]}  c3 {[%clk 0:01:55]} 26. Rc8 {[%clk 0:00:50]}  Rxf2+ {[%clk 0:01:51]} 27. Kh3 {[%clk 0:00:49]}  c2 {[%clk 0:01:45]} 28. Be4 {[%clk 0:00:44]}  Kg7 {[%clk 0:01:42]} 29. Bxc2 {[%clk 0:00:44]}  Bd6 {[%clk 0:01:41]} 30. Rc6 {[%clk 0:00:42]}  Be5 {[%clk 0:01:40]} 31. Be4 {[%clk 0:00:39]}  Re2 {[%clk 0:01:36]} 32. Bf3 {[%clk 0:00:39]}  Re3 {[%clk 0:01:35]} 33. Kg2 {[%clk 0:00:39]}  h5 {[%clk 0:01:32]} 34. Rc5 {[%clk 0:00:35]}  Bd4 {[%clk 0:01:27]} 35. Rd5 {[%clk 0:00:35]}  Bb6 {[%clk 0:01:27]} 36. Rd7 {[%clk 0:00:35]}  Kf6 {[%clk 0:01:15]} 37. Bd5 {[%clk 0:00:33]}  Re7 {[%clk 0:01:16]} 38. Rxe7 {[%clk 0:00:25]}  Kxe7 {[%clk 0:01:17]} 39. Kf3 {[%clk 0:00:25]}  a5 {[%clk 0:01:09]} 40. Bb3 {[%clk 0:00:25]}  f6 {[%clk 0:01:09]} 41. Ke4 {[%clk 0:00:24]}  Bc7 {[%clk 0:01:07]} 42. Kf3 {[%clk 0:00:24]}  f5 {[%clk 0:01:01]} 43. Ba4 {[%clk 0:00:21]}  Kf6 {[%clk 0:01:01]} 44. Bb3 {[%clk 0:00:22]}  g5 {[%clk 0:00:58]} 45. Ba4 {[%clk 0:00:22]}  g4+ {[%clk 0:00:58]} 46. Kg2 {[%clk 0:00:22]}  Bxg3 {[%clk 0:00:57]} 47. Kxg3 {[%clk 0:00:22]}  Kg5 {[%clk 0:00:57]} 48. Bd7 {[%clk 0:00:20]}  f4+ {[%clk 0:00:56]} 49. Kg2 {[%clk 0:00:20]}  h4 {[%clk 0:00:56]} 50. Kf2 {[%clk 0:00:20]}  h3 {[%clk 0:00:55]} 51. Bc6 {[%clk 0:00:20]}  g3+ {[%clk 0:00:52]} 52. Kg1 {[%clk 0:00:20]}  Kg4 {[%clk 0:00:51]} 53. Bd7+ {[%clk 0:00:19]}  Kh4 {[%clk 0:00:51]} 54. Bc6 {[%clk 0:00:18]}  h2+ {[%clk 0:00:49]} 55. Kg2 {[%clk 0:00:17]}  Kg5 {[%clk 0:00:49]} 56. Kh3 {[%clk 0:00:15]}  a4 {[%clk 0:00:47]} 57. Kg2 {[%clk 0:00:15]}  a3 {[%clk 0:00:48]} 58. Bd5 {[%clk 0:00:15]}  Kf5 {[%clk 0:00:48]} 59. Bb3 {[%clk 0:00:15]}  Ke5 {[%clk 0:00:49]} 60. Ba2 {[%clk 0:00:14]}  Kd4 {[%clk 0:00:49]} 61. Bb3 {[%clk 0:00:15]}  Kc3 {[%clk 0:00:49]} 62. Be6 {[%clk 0:00:15]}  Kb2 {[%clk 0:00:50]} 63. Bd5 {[%clk 0:00:15]}  a2 {[%clk 0:00:50]} 64. Bc4 {[%clk 0:00:13]}  a1=Q {[%clk 0:00:49]} 65. Kf3 {[%clk 0:00:14]}  h1=Q+ {[%clk 0:00:49]} 66. Kg4 {[%clk 0:00:14]}  g2 {[%clk 0:00:48]} 67. Kf5 {[%clk 0:00:14]}  f3 {[%clk 0:00:49]} 68. Ke6 {[%clk 0:00:15]}  g1=Q {[%clk 0:00:48]} 69. Bd5 {[%clk 0:00:16]}  Qge1+ {[%clk 0:00:46]} 70. Kd7 {[%clk 0:00:16]}  Qd2 {[%clk 0:00:45]} 71. Kc6 {[%clk 0:00:15]}  Qac1+ {[%clk 0:00:45]} 72. Kb6 {[%clk 0:00:14]}  Qhg1+ {[%clk 0:00:44]} 73. Ka6 {[%clk 0:00:13]}  f2 {[%clk 0:00:44]} 74. Bc4 {[%clk 0:00:11]}  Qxc4+ {[%clk 0:00:43]} 75. Kb7 {[%clk 0:00:09]}  f1=Q {[%clk 0:00:41]} 76. Kb8 {[%clk 0:00:10]}  Qde1 {[%clk 0:00:39]} 77. Kb7 {[%clk 0:00:10]}  Qcd3 {[%clk 0:00:38]} 78. Kb8 {[%clk 0:00:11]}  Qdd1 {[%clk 0:00:36]} 79. Kb7 {[%clk 0:00:12]}  Kc3 {[%clk 0:00:35]} 80. Kb8 {[%clk 0:00:13]}  Kd4 {[%clk 0:00:35]} 81. Kb7 {[%clk 0:00:14]}  Ke3 {[%clk 0:00:35]} 82. Kb8 {[%clk 0:00:14]}  Kf2 {[%clk 0:00:36]} 83. Kb7 {[%clk 0:00:15]}  Kg2 {[%clk 0:00:36]} 84. Kb8 {[%clk 0:00:16]}  Kh1 {[%clk 0:00:37]} 85. Kb7 {[%clk 0:00:17]}  Qb1+ {[%clk 0:00:30]} 86. Kc7 {[%clk 0:00:17]}  Qc3+ {[%clk 0:00:30]} 87. Kd8 {[%clk 0:00:17]}  Qfd3+ {[%clk 0:00:27]} 88. Ke8 {[%clk 0:00:17]}  Qbc1 {[%clk 0:00:26]} 89. Ke7 {[%clk 0:00:18]}  Qce3+ {[%clk 0:00:25]} 90. Kf7 {[%clk 0:00:18]}  Qgg3 {[%clk 0:00:23]} 91. Kf8 {[%clk 0:00:18]}  Qgf4+ {[%clk 0:00:22]} 92. Kg8 {[%clk 0:00:17]}  Qeg3# {[%clk 0:00:19]} 0-1


[Site "https://www.chess.com"]

[Event "Titled Tuesday Blitz January 17 Late 2023"]
[White "Nefedov, Sergey"]
[Black "Vifleemskaia, Svetlana"]
[WhiteFideId "24113417"]
[BlackFideId "4129490"]
[WhiteElo "2300"]
[BlackElo "1971"]
[Result "1-0"]
[Round "05"]
[TimeControl "180+2"]
[Date "2023.01.17"]
[WhiteClock "0:01:46"]
[BlackClock "0:00:17"]

1. d4 {[%clk 0:03:00]}  Nf6 {[%clk 0:02:47]} 2. Nf3 {[%clk 0:02:59]}  d5 {[%clk 0:02:46]} 3. c4 {[%clk 0:02:56]}  dxc4 {[%clk 0:02:46]} 4. e3 {[%clk 0:02:54]}  c5 {[%clk 0:02:41]} 5. Bxc4 {[%clk 0:02:53]}  cxd4 {[%clk 0:02:38]} 6. Nxd4 {[%clk 0:02:52]}  e5 {[%clk 0:02:34]} 7. Nb5 {[%clk 0:02:50]}  Qxd1+ {[%clk 0:02:32]} 8. Kxd1 {[%clk 0:02:50]}  Na6 {[%clk 0:02:33]} 9. Ke2 {[%clk 0:02:42]}  Be7 {[%clk 0:02:29]} 10. Rd1 {[%clk 0:02:41]}  O-O {[%clk 0:02:28]} 11. N1c3 {[%clk 0:02:40]}  Bf5 {[%clk 0:02:17]} 12. f3 {[%clk 0:02:37]}  Rfd8 {[%clk 0:02:13]} 13. Rxd8+ {[%clk 0:02:34]}  Bxd8 {[%clk 0:02:08]} 14. e4 {[%clk 0:02:34]}  Bd7 {[%clk 0:02:03]} 15. Be3 {[%clk 0:02:32]}  Bb6 {[%clk 0:02:03]} 16. Bxb6 {[%clk 0:02:26]}  axb6 {[%clk 0:02:04]} 17. Nd6 {[%clk 0:02:25]}  Be6 {[%clk 0:01:57]} 18. Bxe6 {[%clk 0:02:14]}  fxe6 {[%clk 0:01:58]} 19. Nxb7 {[%clk 0:02:14]}  Ne8 {[%clk 0:01:33]} 20. Rd1 {[%clk 0:02:10]}  Nb4 {[%clk 0:01:08]} 21. a3 {[%clk 0:02:07]}  Nc6 {[%clk 0:01:07]} 22. Nb5 {[%clk 0:01:55]}  Rb8 {[%clk 0:00:51]} 23. N7d6 {[%clk 0:01:48]}  Nd4+ {[%clk 0:00:20]} 24. Nxd4 {[%clk 0:01:46]}  Nxd6 {[%clk 0:00:17]} 25. Nc6 {[%clk 0:01:46]} 1-0


[Site "https://www.chess.com"]

[Event "Titled Tuesday Blitz January 17 Late 2023"]
[White "Balague Camps, Marc"]
[Black "Santos Flores, Alberto"]
[WhiteFideId "2297914"]
[BlackFideId "3601234"]
[WhiteElo "2190"]
[BlackElo "2164"]
[Result "0-1"]
[Round "05"]
[TimeControl "180+2"]
[Date "2023.01.17"]
[WhiteClock "0:00:02"]
[BlackClock "0:00:05"]

1. d4 {[%clk 0:00:45]}  d5 {[%clk 0:02:57]} 2. c4 {[%clk 0:00:46]}  c6 {[%clk 0:02:57]} 3. cxd5 {[%clk 0:00:46]}  cxd5 {[%clk 0:02:57]} 4. Bf4 {[%clk 0:00:47]}  Nc6 {[%clk 0:02:57]} 5. e3 {[%clk 0:00:47]}  Nf6 {[%clk 0:02:57]} 6. Nc3 {[%clk 0:00:48]}  Bf5 {[%clk 0:02:57]} 7. Qb3 {[%clk 0:00:47]}  Na5 {[%clk 0:02:56]} 8. Qa4+ {[%clk 0:00:48]}  Bd7 {[%clk 0:02:54]} 9. Qc2 {[%clk 0:00:48]}  e6 {[%clk 0:02:53]} 10. Bd3 {[%clk 0:00:49]}  Rc8 {[%clk 0:02:51]} 11. Nf3 {[%clk 0:00:49]}  Be7 {[%clk 0:02:50]} 12. O-O {[%clk 0:00:49]}  O-O {[%clk 0:02:48]} 13. h3 {[%clk 0:00:50]}  h6 {[%clk 0:02:47]} 14. Qe2 {[%clk 0:00:50]}  Nc4 {[%clk 0:02:46]} 15. Rfc1 {[%clk 0:00:48]}  Qa5 {[%clk 0:02:36]} 16. Ne5 {[%clk 0:00:48]}  Nxe5 {[%clk 0:02:36]} 17. dxe5 {[%clk 0:00:48]}  Ne8 {[%clk 0:02:34]} 18. a3 {[%clk 0:00:46]}  Nc7 {[%clk 0:02:27]} 19. b4 {[%clk 0:00:46]}  Qb6 {[%clk 0:02:21]} 20. Bb1 {[%clk 0:00:46]}  Ne8 {[%clk 0:01:07]} 21. Qd3 {[%clk 0:00:43]}  f5 {[%clk 0:01:08]} 22. exf6 {[%clk 0:00:43]}  Nxf6 {[%clk 0:01:07]} 23. Be5 {[%clk 0:00:43]}  Ne4 {[%clk 0:01:04]} 24. Ba2 {[%clk 0:00:41]}  Nxc3 {[%clk 0:00:59]} 25. Rxc3 {[%clk 0:00:38]}  Rxc3 {[%clk 0:00:57]} 26. Qxc3 {[%clk 0:00:36]}  Bf6 {[%clk 0:00:56]} 27. Bxf6 {[%clk 0:00:34]}  Rxf6 {[%clk 0:00:56]} 28. Rc1 {[%clk 0:00:33]}  Rf8 {[%clk 0:00:50]} 29. Qc7 {[%clk 0:00:33]}  Bc6 {[%clk 0:00:43]} 30. Qxb6 {[%clk 0:00:33]}  axb6 {[%clk 0:00:44]} 31. Rc3 {[%clk 0:00:33]}  Kf7 {[%clk 0:00:42]} 32. f3 {[%clk 0:00:32]}  Ke7 {[%clk 0:00:42]} 33. Kf2 {[%clk 0:00:32]}  Kd6 {[%clk 0:00:41]} 34. Ke2 {[%clk 0:00:32]}  Rc8 {[%clk 0:00:34]} 35. Kd2 {[%clk 0:00:32]}  Bd7 {[%clk 0:00:33]} 36. Rxc8 {[%clk 0:00:32]}  Bxc8 {[%clk 0:00:34]} 37. f4 {[%clk 0:00:31]}  e5 {[%clk 0:00:32]} 38. g3 {[%clk 0:00:31]}  Bxh3 {[%clk 0:00:31]} 39. Kd3 {[%clk 0:00:29]}  Bf5+ {[%clk 0:00:30]} 40. Kc3 {[%clk 0:00:28]}  g5 {[%clk 0:00:28]} 41. fxg5 {[%clk 0:00:22]}  hxg5 {[%clk 0:00:28]} 42. Bb3 {[%clk 0:00:23]}  Be4 {[%clk 0:00:27]} 43. Bd1 {[%clk 0:00:22]}  Ke6 {[%clk 0:00:25]} 44. Bg4+ {[%clk 0:00:23]}  Bf5 {[%clk 0:00:25]} 45. Bh5 {[%clk 0:00:23]}  Kf6 {[%clk 0:00:22]} 46. Be8 {[%clk 0:00:20]}  Be6 {[%clk 0:00:20]} 47. Bh5 {[%clk 0:00:19]}  Kf5 {[%clk 0:00:20]} 48. Bf3 {[%clk 0:00:19]}  Bf7 {[%clk 0:00:15]} 49. Kd2 {[%clk 0:00:15]}  d4 {[%clk 0:00:10]} 50. exd4 {[%clk 0:00:15]}  exd4 {[%clk 0:00:10]} 51. Kd3 {[%clk 0:00:15]}  Ke5 {[%clk 0:00:10]} 52. Bxb7 {[%clk 0:00:15]}  Bg6+ {[%clk 0:00:10]} 53. Kd2 {[%clk 0:00:15]}  Be8 {[%clk 0:00:08]} 54. Bf3 {[%clk 0:00:15]}  Bb5 {[%clk 0:00:07]} 55. Be2 {[%clk 0:00:12]}  Bxe2 {[%clk 0:00:06]} 56. Kxe2 {[%clk 0:00:13]}  b5 {[%clk 0:00:07]} 57. Kd3 {[%clk 0:00:12]}  Kd5 {[%clk 0:00:07]} 58. Kd2 {[%clk 0:00:10]}  Ke4 {[%clk 0:00:07]} 59. g4 {[%clk 0:00:04]}  d3 {[%clk 0:00:07]} 60. a4 {[%clk 0:00:04]}  bxa4 {[%clk 0:00:06]} 61. b5 {[%clk 0:00:05]}  a3 {[%clk 0:00:05]} 62. b6 {[%clk 0:00:05]}  a2 {[%clk 0:00:06]} 63. b7 {[%clk 0:00:05]}  a1=Q {[%clk 0:00:05]} 64. b8=Q {[%clk 0:00:06]}  Qa2+ {[%clk 0:00:05]} 65. Kc1 {[%clk 0:00:02]}  Qc2# {[%clk 0:00:05]} 0-1


[Site "https://www.chess.com"]

[Event "Titled Tuesday Blitz January 17 Late 2023"]
[White "Suvorov, Luca"]
[Black "Mesa Cruz, Juan Carlos"]
[WhiteFideId "12977071"]
[BlackFideId "6423400"]
[WhiteElo "2310"]
[BlackElo "2122"]
[Result "0-1"]
[Round "05"]
[TimeControl "180+2"]
[Date "2023.01.17"]
[WhiteClock "0:00:10"]
[BlackClock "0:01:41"]

1. b3 {[%clk 0:03:00]}  Nf6 {[%clk 0:02:55]} 2. Bb2 {[%clk 0:03:00]}  e6 {[%clk 0:02:56]} 3. e3 {[%clk 0:02:59]}  d5 {[%clk 0:02:56]} 4. f4 {[%clk 0:02:58]}  Bd6 {[%clk 0:02:55]} 5. Nf3 {[%clk 0:02:59]}  Qe7 {[%clk 0:02:55]} 6. d3 {[%clk 0:02:59]}  Nbd7 {[%clk 0:02:55]} 7. Be2 {[%clk 0:02:59]}  e5 {[%clk 0:02:52]} 8. fxe5 {[%clk 0:02:53]}  Nxe5 {[%clk 0:02:52]} 9. O-O {[%clk 0:02:53]}  Neg4 {[%clk 0:02:52]} 10. Bxf6 {[%clk 0:02:29]}  Qxf6 {[%clk 0:02:36]} 11. Nbd2 {[%clk 0:01:11]}  Nxe3 {[%clk 0:02:34]} 12. Qc1 {[%clk 0:01:10]}  Nxf1 {[%clk 0:02:34]} 13. Qxf1 {[%clk 0:01:11]}  O-O {[%clk 0:02:30]} 14. d4 {[%clk 0:01:05]}  Bf5 {[%clk 0:02:27]} 15. Bd3 {[%clk 0:01:05]}  Bxd3 {[%clk 0:02:24]} 16. Qxd3 {[%clk 0:01:06]}  Rae8 {[%clk 0:02:24]} 17. Rf1 {[%clk 0:01:05]}  Qg6 {[%clk 0:02:15]} 18. Qb5 {[%clk 0:01:00]}  Qxc2 {[%clk 0:02:09]} 19. Qxb7 {[%clk 0:01:00]}  Re2 {[%clk 0:02:06]} 20. Qxd5 {[%clk 0:00:34]}  Rxd2 {[%clk 0:02:03]} 21. Nxd2 {[%clk 0:00:35]}  Qxd2 {[%clk 0:02:03]} 22. a4 {[%clk 0:00:36]}  Qe3+ {[%clk 0:02:02]} 23. Kh1 {[%clk 0:00:36]}  Qh6 {[%clk 0:01:58]} 24. h3 {[%clk 0:00:34]}  Qh4 {[%clk 0:01:55]} 25. Qf3 {[%clk 0:00:13]}  Qg3 {[%clk 0:01:51]} 26. Qxg3 {[%clk 0:00:12]}  Bxg3 {[%clk 0:01:52]} 27. Rf3 {[%clk 0:00:12]}  Bd6 {[%clk 0:01:52]} 28. Rf5 {[%clk 0:00:12]}  Rb8 {[%clk 0:01:51]} 29. Ra5 {[%clk 0:00:10]}  Rxb3 {[%clk 0:01:50]} 30. Kg1 {[%clk 0:00:11]}  Rb4 {[%clk 0:01:41]} 31. Rxa7 {[%clk 0:00:10]}  Kf8 {[%clk 0:01:41]} 32. d5 {[%clk 0:00:10]}  Bc5+ {[%clk 0:01:41]} 0-1


[Site "https://www.chess.com"]